Cogmind - Beta 13 --- EXPLORER MODE // 2024.04.15 @ 14:12:47 Player: Laika Result: Self-destructed Performance ------------- Evolutions (1) 500 Regions Visited (2) 400 Robots Destroyed (22) 110 Value Destroyed (524) 524 Prototype IDs (0) 0 Alien Tech Used (0) 0 Bonus (0) 0 TOTAL SCORE: 1534 Bonus ------- None Cogmind --------- Core Integrity 396/400 Matter 250/300 Energy 275/275 System Corruption 0% Temperature Cool (0) Movement Treading (170) Location -9/Materials Parts ------- > --- POWER (1) -------- Deuterium Engine > --- PROPULSION (3) --- Armored Treads Armored Treads Armored Treads > --- UTILITY (3) ------ Large Storage Unit ECM Suite Tractor Beam > --- WEAPON (3) ------- Heavy Assault Rifle Improved Light Cannon Datajack > --- INVENTORY (15) --- (None) Peak State ------------ > --- POWER ------------ Deuterium Engine > --- PROPULSION ------- Armored Treads Armored Treads Armored Treads > --- UTILITY ---------- Medium Storage Unit ECM Suite Tractor Beam > --- WEAPON ----------- Heavy Assault Rifle Improved Light Cannon Datajack > --- INVENTORY -------- (None) [Rating: 20] Favorites ----------- Power Ion Engine Engine Ion Engine Propulsion Light Treads Treads Light Treads Utility Tractor Beam Device Tractor Beam Storage Medium Storage Unit Protection Light Armor Plating Weapon Assault Rifle Ballistic Gun Assault Rifle Ballistic Cannon Improved Light Cannon Special Melee Weapon Datajack Build | -11 -10 -9 ------- Run | Yrd Mat Mat Slots Evolved 3 | . 1 2 Power . | . . . Propulsion 1 | . 1 . Utility 1 | . . 1 Weapon 1 | . . 1 Parts Attached 28 | 8 7 13 Power 3 | 1 . 2 Engine 3 | 1 . 2 Core . | . . . Reactor . | . . . Propulsion 10 | 2 4 4 Treads 10 | 2 4 4 Leg . | . . . Wheel . | . . . Hover . | . . . Flight . | . . . Utility 7 | 2 2 3 Device 3 | . 2 1 Storage 3 | 1 . 2 Processor . | . . . Hackware . | . . . Protection 1 | 1 . . Artifact . | . . . Weapon 8 | 3 1 4 Energy Gun . | . . . Energy Cannon . | . . . Ballistic Gun 6 | 3 . 3 Ballistic Cannon 1 | . . 1 Launcher . | . . . Special Weapon . | . . . Impact Weapon . | . . . Slashing Weapon . | . . . Piercing Weapon . | . . . Special Melee Weapon 1 | . 1 . Unidentified Prototypes . | . . . Parts Lost . | . . . Power . | . . . Propulsion . | . . . Utility . | . . . Weapon . | . . . Highest Loss Streak . | . . . To Critical Strikes . | . . . Average Slot Usage (%) 93 | . 95 88 Engine 10 | . 12 9 Treads 31 | . 32 29 Device 13 | . 11 19 Storage 7 | . 7 7 Protection 3 | . 5 . Ballistic Gun 14 | . 17 9 Ballistic Cannon 1 | . . 4 Special Melee Weapon 7 | . 6 10 Naked Turns . | . . . Heaviest Build 40 | 22 22 40 Greatest Support 60 | 40 60 60 Greatest Overweight (x) 3 | . 3 . Average Overweight (x) . | . . . Largest Inventory Capacity 15 | 10 10 15 Average Capacity 8 | 6 8 10 Most Carried 10 | 3 4 10 Average Carried . | . . 1 Final Capacity 15 | 10 5 15 Final Carried 1 | . 1 . Class Distribution -------------------- 100% | Hacker-Mutant Dominant Class ---------------- Hacker-Mutant | -10/Materials Hacker-Mutant | -9/Materials Resources | -11 -10 -9 ----------- Run | Yrd Mat Mat Matter Collected 720 | 205 311 204 Remotely 266 | . 62 204 Salvage Created 681 | . 452 229 Parts 55 | . 35 20 Haulers Intercepted . | . . . Recyclers Shooed 3 | . 3 . Parts Field Recycled . | . . . Retrieved Matter . | . . . Parts Self-Destructed . | . . . Prevented . | . . . Kills | -11 -10 -9 ------- Run | Yrd Mat Mat Combat Hostiles Destroyed 15 | . 9 6 Guns 13 | . 9 4 Cannons 2 | . . 2 Classes Destroyed 6 | . 5 1 Worker 1 | . 1 . Builder 1 | . 1 . Watcher 5 | . 3 2 Swarmer 5 | . 2 3 Grunt 8 | . 7 1 Sentry 2 | . . 2 Best Kill Streak 6 | . 6 3 Combat Bots Only 5 | . 5 2 Max Kills in Single Turn 1 | . 1 1 Gunslinging . | . . . Exploded . | . . . Melee . | . . . Uniques/NPCs Destroyed . | . . . Combat | -11 -10 -9 -------- Run | Yrd Mat Mat Hostile Shots Fired 107 | . 86 21 Missed 33 | . 27 6 Damage Taken 575 | . 479 96 Core 73 | . 69 4 Absorbed by Shields . | . . . Ignored by Resistances 367 | . 304 63 Regen/Repaired (Parts) 40 | . . 40 Core Remaining (%) 86 | 100 72 . Volleys Fired 63 | . 45 18 Largest 2 | . 2 2 Hottest 62 | . 40 62 Shots Fired 98 | . 74 24 Gun 92 | . 74 18 Cannon 6 | . . 6 Launcher . | . . . Special . | . . . Kinetic 98 | . 74 24 Thermal . | . . . Explosive . | . . . Electromagnetic . | . . . Robot Hit Streak 24 | . 24 19 Robot Miss Streak 1 | . 1 1 Penetration Max . | . . . Secondary Targets 3 | . 3 . Max Gunslinging Chain 1 | . 1 . Shots Hit Robots 96 | . 73 23 Core Hits 39 | . 29 10 Critical Kills 1 | . 1 . Critical Parts Destroyed . | . . . Critical Strikes 1 | . 1 . Destroy 1 | . 1 . Melee Attacks 10 | . 8 2 Impact . | . . . Slashing . | . . . Piercing . | . . . Sneak Attacks 7 | . 6 1 Combat Hostiles . | . . . Follow-up Attacks . | . . . Damage Inflicted 1142 | . 836 306 Guns 1036 | . 835 201 Cannons 105 | . . 105 Explosions . | . . . Melee . | . . . Ramming 1 | . 1 . Kinetic 1141 | . 835 306 Thermal . | . . . Explosive . | . . . Electromagnetic . | . . . Impact . | . . . Slashing . | . . . Piercing . | . . . Highest Corruption . | . . . Average Corruption . | . . . Corruption Purged . | . . . Corruption Blocked . | . . . Overload Shots . | . . . Overflow Damage . | . . . Projectiles . | . . . Explosions . | . . . Melee . | . . . Knockbacks . | . . . Impact . | . . . Kinetic . | . . . Secondary . | . . . Self-Inflicted Damage . | . . . Shots . | . . . Rammed 2 | . 2 . Targets Rammed 2 | . 2 . Kicked . | . . . Crushed . | . . . Highest Temperature 125 | . 125 28 Average Temperature 52 | . 60 9 Received Heat Transfer 387 | . 351 36 Siege Activations . | . . . Robots Corrupted . | . . . Combat Hostiles . | . . . Parts Fried . | . . . Impact Corruptions . | . . . Robots Melted . | . . . Combat Hostiles . | . . . Parts Melted . | . . . Heat Transferred . | . . . Parts Sabotaged . | . . . Parts Stolen . | . . . Parts Stripped . | . . . Power Chain Reactions . | . . . Alert | -11 -10 -9 ------- Run | Yrd Mat Mat Peak Influence 201 | . 201 180 Initial 1 | . . 1 Average 64 | . 77 53 Maximum Alert Level 1 | . 1 . Low Security (%) 86 | 100 78 100 Level 1 13 | . 21 . Level 2 . | . . . Level 3 . | . . . Level 4 . | . . . Level 5 . | . . . High Security . | . . . Max Security . | . . . Squads Dispatched 1 | . . 1 Investigation 1 | . . 1 Extermination . | . . . Reinforcement . | . . . Assault . | . . . Garrison . | . . . Intercept . | . . . Searches Triggered . | . . . Construction Impeded . | . . . Haulers Reinforced . | . . . Active Scanning Responses . | . . . Cargo Convoy Interrupts . | . . . Stealth | -11 -10 -9 --------- Run | Yrd Mat Mat Distress Signals 2 | . . 2 Communications Jammed . | . . . Distress Signals . | . . . Times Spotted 23 | . 15 8 Peak Tracking Total 5 | . 5 3 Tactical Retreats . | . . . Traps | -11 -10 -9 ------- Run | Yrd Mat Mat Traps Triggered 3 | . 3 . Indirectly . | . . . Trap Hack Attempts . | . . . Triggered . | . . . Disarmed . | . . . Reprogrammed . | . . . Reused . | . . . Traps Extracted . | . . . Installed . | . . . Triggered . | . . . Machines | -11 -10 -9 ---------- Run | Yrd Mat Mat Machines Disabled . | . . . Max in Single Turn . | . . . Machines Repaired . | . . . Machines Dismantled . | . . . Machines Sabotaged . | . . . Overloaded Fab Kills . | . . . Hacking | -11 -10 -9 --------- Run | Yrd Mat Mat Machines Accessed 2 | . 1 1 Terminals 1 | . 1 . Fabricators . | . . . Repair Stations 1 | . . 1 Recycling Units . | . . . Scanalyzers . | . . . Garrison Access . | . . . Total Hacks 12 | . 3 9 Successful 12 | . 3 9 Failed . | . . . Catastrophic . | . . . Database Lockouts . | . . . Manual . | . . . Terminals 3 | . 3 . Fabricators . | . . . Repair Stations 9 | . . 9 Recycling Units . | . . . Scanalyzers . | . . . Garrison Access . | . . . Terminal Hacks 3 | . 3 . Record 2 | . 2 . Alert Level 1 | . 1 . Fabricator Hacks . | . . . Repair Station Hacks 9 | . . 9 Scan Component 5 | . . 5 Repair 4 | . . 4 Recycling Unit Hacks . | . . . Scanalyzer . | . . . Garrison Access Hacks . | . . . Unauthorized Hacks . | . . . Terminals . | . . . Fabricators . | . . . Repair Stations . | . . . Recycling Units . | . . . Scanalyzers . | . . . Garrison Access . | . . . Data Cores Recovered . | . . . Used . | . . . Hacking Detections 2 | . 1 1 Full Trace Events 2 | . 1 1 Feedback Events . | . . . Feedback Blocked . | . . . Robot Schematics Acquired . | . . . Robots Built . | . . . Authchips . | . . . Time . | . . . Total Robot Build Rating . | . . . Part Schematics Acquired . | . . . Parts Built . | . . . Authchips . | . . . Time . | . . . Total Part Build Rating . | . . . Parts Repaired 4 | . . 4 Time 134 | . . 134 Parts Recycled . | . . . Recycled Matter . | . . . Retrieved Matter . | . . . Retrieved Components . | . . . Parts Scanalyzed . | . . . Part Schematics Acquired . | . . . Parts Damaged . | . . . Bothacking | -11 -10 -9 ------------ Run | Yrd Mat Mat Used RIF Installer . | . . . Robots Hacked 3 | . 2 1 Non-combat 2 | . 1 1 Combat 1 | . 1 . Robot Hacks Applied 4 | . 3 1 parse_system 2 | . 2 . no_distress 1 | . 1 . find_recycling 1 | . . 1 Relay Couplers Released . | . . . Fabnet Peak Effective % . | . . . Robots Rewired . | . . . Allies Hacked . | . . . Hacks Repelled . | . . . Allies | -11 -10 -9 -------- Run | Yrd Mat Mat Total Allies . | . . . Largest Group . | . . . Highest-Rated Group . | . . . Highest-Rated Ally . | . . . Total Orders . | . . . Ally Attacks . | . . . Total Damage . | . . . Kills . | . . . Allies Corrupted . | . . . Allies Melted . | . . . Intel | -11 -10 -9 ------- Run | Yrd Mat Mat Robot Analysis Total . | . . . Derelict Logs Recovered . | . . . Drone Launches . | . . . Drone Recoveries . | . . . Exploration | -11 -10 -9 ------------- Run | Yrd Mat Mat Turns Passed 1514 | 92 924 498 Spaces Moved 718 | 55 473 190 Core 16 | 13 3 . Treads 702 | 42 470 190 Legs . | . . . Wheels . | . . . Hover . | . . . Flight . | . . . Fastest Speed 50 | 50 160 160 Average Speed 160 | 134 160 168 Slowest Speed 200 | 160 200 170 Overloaded Moves . | . . . Propulsion Burnouts . | . . . Robots Hopped . | . . . Cave-ins Triggered . | . . . Exploration Rate (%) 33 | 4 78 18 Regions Visited 2 Branch Regions . Pre-discovered Areas . | . . . Known Exits Taken 2 | 1 1 . Unknown Exits Taken . | . . . Scrap Searched . | . . . Spaces Dug . | . . . Terrain Destroyed . | . . . Melee . | . . . Projectile . | . . . AOE . | . . . Terrain Rammed . | . . . Walls Destroyed . | . . . Machines Disabled . | . . . Actions | -11 -10 -9 --------- Run | Yrd Mat Mat Total 988 | 74 563 351 Wait 112 | 1 15 96 Move 716 | 54 472 190 Hop . | . . . Pick Up 35 | 9 8 18 Fast Attach . | . . . Attach 27 | 7 7 13 Detach 4 | . 3 1 Swap 1 | 1 . . Drop 18 | 2 3 13 Fire 63 | . 45 18 Melee 10 | . 8 2 Ram . | . . . Kick . | . . . Crush 2 | . 2 . Escape Stasis . | . . . Rewire . | . . . Trap . | . . . Miscellaneous . | . . . Route ------- -11/Scrapyard -10/Materials (discovered 4 exits: *Mat x2 / *Min x2) -9/Materials History --------- Turn | Location | Event 7 | -11/Scrapyard | Identified exit to Materials 7 | -11/Scrapyard | Discovered exit to Materials (range 15) 93 | -11/Scrapyard | Entered Materials 93 | -10/Materials | Evolved 1 slot: Propulsion x1 219 | -10/Materials | Identified exit to Mines 219 | -10/Materials | Discovered exit to Mines (range 16) 303 | -10/Materials | Build established: Hacker-Mutant 425 | -10/Materials | Identified exit to Materials 425 | -10/Materials | Discovered exit to Materials (range 7) 765 | -10/Materials | Discovered exit to Mines (range 13) 970 | -10/Materials | Discovered exit to Materials (range 16) 1017 | -10/Materials | Entered another Materials area 1017 | -9/Materials | Evolved 2 slots: Utility x1, Weapon x1 1427 | -9/Materials | Repaired Hvy. Assault Rifle 1427 | -9/Materials | Repaired Deuterium Engine 1427 | -9/Materials | Repaired Tractor Beam 1465 | -9/Materials | Repaired Arm. Treads 1515 | -9/Materials | Self-destructed Last Messages --------------- Arm. Treads Rating: 3 Time: 38 01427_ ALERT: Suspicious activity at Repair Station M001. Dispatching Investigation squad. 01429_ Acquired Deuterium Engine. 01431_ Acquired Hvy. Assault Rifle. 01436_ Acquired Tractor Beam. 01465_ Repair station completes Arm. Treads repairs. 01469_ Acquired Arm. Treads. 01477_ Dropped Sml. Storage Unit. 01478_ Dropped Med. Storage Unit. 01480_ Dropped Lrg. Storage Unit. 01484_ K-01 Serf collects debris. 01495_ K-01 Serf cleans the Repair Station. 01501_ R-06 Scavenger collects Med. Storage Unit. 01502_ K-01 Serf cleans the Repair Station. 01512_ K-01 Serf collects debris. Map ----- +----------------------------------------------------+ | | | | | | | | | | | | | | | | | | | | | | | | | ????????????????????????????????????????? | | ????????????????????????????????????????? | | ????????????????????????????????????????? | | ????????????????????????????????????????? | | ????????????????????????????????????????? | | ??????????????????????######????????????? | | ?????????????????????## ##???????????? | | ?????????????????????# #???????????? | | ##???????????????????# #???????????? | | #??????????# #### #???????????? | | #??????????# #???????????? | | +??????????# #???????????? | | #??????????# #######r###???????????? | | ???????????## ????# k@ #???????????? | | ##????????????# #???# """ !#???????????? | | ??????????????? #???# "R !!#???????????? | | ############### #???# """!!#???????????? | | ! #???# #???????????? | | ! #???# #???????????? | | ! #???####+###???????????? | | [ !%= + ???# #?????????????? | | * !* #??????# #?????????????? | | = #! ????# #?????????????? | | ### ######### # ""??# #?????????????? | | #?# #???????# # # #?????????????? | | ###+######### # + #?????????????? | | ## ## ######## #?????????????? | | ## [!## ##???### ##????????????? | | #[ "" [# ##### #????????????? | | # """=+%! #????????????? | | T # "S """=#% ! +????????????? | | # """ # ##### #????????????? | | ## "" ##+###???######????????????? | | ??# # ????????????????????????? | | ??###########"?????????????????????????? | | ?????????????#"?????????????????????????? | | ?????????????#??????????????????????????? | | ????????????????????????????????????????? | +----------------------------------------------------+ Best States ------------- Heat Dissipation 28 Energy Generation 14 Energy Capacity 275 Matter Stores 300 Matter Capacity 300 Sight Range 16 Terrain Scan Density 10 ECM Strength 1 Armor Coverage 150 Resistance: KI 35 Resistance: TH 35 Resistance: EX 35 Resistance: EM 35 Resistance: I 35 Resistance: S 35 Resistance: P 35 Evasion (%) 50 Recoil Reduction 3 Offensive Hacking 20 Item Schematics ----------------- None Robot Schematics ------------------ None Fabricated ------------ Nothing Alien Tech Used ----------------- None Achievements -------------- None Challenges ------------ None Game ------ Seed MyomerIonicStorm Manual? 0 Play Time 00:11:16 Cumulative 2.2 hours Start 2024.04.14 @ 22:04:52 End 2024.04.15 @ 14:12:47 Sessions 3 Manual Loads 0 Difficulty Explorer Special Mode None Game No. 13 Rogue 0 Adventurer 0 Explorer 13 Win Type - Total 0 Types 0/0/0/0/0/0/0/0/0 Lore% 3 Gallery% 9 Achievement% 8 Wizard Run 0 Options --------- Layout 2 ASCII 0 Keyboard 0 Movement Mouse Keybinds 0 Fullscreen 1 Font 24/Smallcaps Map View 50x44 Zoom Use 0% Tactical HUD 1 Map Filters NONE Filters NONE Steam 1 RUN: 579aada2-ea62-4cf4-8fe2-3d389ebcafb4